bitfinex/quotes_ETHUSD_20260305
["timestamp","ask_amount","ask_price","bid_price","bid_amount"]
[1772716522439,4.20382487,2126.9,2126.4,0.0011]
[1772716522841,1.17541962,2126.9,2126.4,0.0011]
[1772716523044,2.9103091,2127.1,2126.4,3.01371981]
[1772716523241,1.735,2127.1,2126.4,3.01371981]
[1772716524761,5.93876924,2127.1,2126.4,3.01371981]
[1772716524968,3.02840525,2127.0,2126.4,0.0011]
[1772716525280,3.02840525,2127.0,2126.6,0.0011]
[1772716525452,0.001,2126.9,2126.6,0.0011]
[1772716530677,1.735,2127.1,2126.6,3.11345814]
[1772716530874,1.17529488,2127.2,2126.6,3.11345814]
[1772716531375,7.77531041,2127.4,2126.7,1.17553016]
[1772716531578,7.77531041,2127.4,2126.8,3.11235814]
[1772716531579,3.07463961,2127.4,2126.8,3.11235814]
[1772716531781,0.001,2127.5,2126.8,3.11235814]
[1772716532377,3.07463961,2127.4,2126.8,3.11235814]
[1772716532553,3.07463961,2127.4,2126.6,4.28902335]
[1772716532953,3.07463961,2127.4,2126.7,3.11235814]
[1772716533384,3.07463961,2127.4,2126.6,0.0011]
[1772716533385,3.07463961,2127.2,2126.6,0.0011]
[1772716535665,3.07463961,2127.0,2126.6,0.0011]
[1772716535869,1.736,2127.4,2126.6,0.0011]
[1772716536053,3.07463961,2127.2,2126.6,0.0011]
[1772716536485,4.81063961,2127.2,2126.6,0.0011]
[1772716536673,3.07463961,2127.2,2126.6,3.11345814]
[1772716538060,4.2499389,2127.2,2126.8,0.0011]
[1772716538373,4.2509389,2127.2,2126.8,0.0011]
[1772716539687,5.9869389,2127.2,2126.8,0.0011]
[1772716540108,3.07463961,2127.1,2126.8,0.0011]
[1772716541559,3.07463961,2127.1,2126.5,0.0011]
[1772716541761,3.07463961,2126.9,2126.5,0.0011]
[1772716542288,3.07463961,2126.7,2126.5,0.0011]
[1772716542588,3.07463961,2126.6,2126.5,0.0011]
[1772716545171,4.24994871,2127.1,2126.5,0.0011]
[1772716545374,1.738,2126.8,2126.5,0.0011]
[1772716545571,4.25093596,2127.2,2126.5,3.11345814]
[1772716547118,2.91429635,2127.2,2126.5,3.11345814]
[1772716547493,3.07463961,2127.1,2126.5,4.2890579]
[1772716548514,2.91429635,2127.2,2126.6,3.11235814]
[1772716548896,3.11659534,2127.1,2126.5,1.17669976]
[1772716549493,3.11659534,2126.9,2126.5,0.0011]
[1772716549692,3.11659534,2126.9,2126.4,0.0011]
[1772716549898,1.17536436,2127.0,2126.4,0.0011]
[1772716549899,3.11659534,2126.7,2126.4,0.0011]
[1772716550099,3.11659534,2126.6,2126.4,0.0011]
[1772716551902,1.17564072,2126.5,2126.4,0.0011]
[1772716552821,1.17640802,2127.0,2126.4,0.0011]
[1772716553186,1.17640802,2127.0,2126.4,3.00716226]
[1772716553882,1.17640802,2127.0,2126.5,4.18170298]
[1772716553883,0.001,2127.0,2126.5,4.18170298]
[1772716554106,4.70334386,2127.0,2126.5,4.18170298]
[1772716556311,1.17531035,2127.1,2126.7,1.7264911]
[1772716556486,0.001,2127.2,2126.7,1.7264911]
[1772716556686,0.54586913,2127.2,2126.7,1.7264911]
[1772716558019,0.001,2127.2,2126.9,1.83868979]
[1772716560206,0.001,2127.5,2127.1,1.82877621]
[1772716560411,0.54686913,2127.5,2127.1,1.82877621]
[1772716560590,0.001,2127.9,2127.1,1.82877621]
[1772716561890,3.43992382,2128.3,2127.1,1.83396756]
[1772716562313,4.61457503,2128.3,2127.3,1.83396756]
[1772716562499,3.43992382,2128.3,2127.3,1.83396756]
[1772716562917,4.61457198,2128.3,2127.3,1.83396756]
[1772716563125,3.43992382,2128.3,2127.3,1.83396756]
[1772716563526,0.32332848,2128.3,2127.3,1.83396756]
[1772716563728,3.11659534,2128.5,2127.3,1.83396756]
[1772716564413,3.11659534,2128.5,2127.5,1.82414796]
[1772716564617,4.29113306,2128.5,2127.5,1.82414796]
[1772716564797,0.001,2127.7,2127.5,1.82414796]
[1772716565614,0.001,2127.7,2127.4,1.17514336]
[1772716567715,0.001,2127.7,2127.4,2.9798721]
[1772716569132,0.001,2128.6,2127.5,1.79992218]
[1772716569443,4.29208221,2128.6,2127.5,1.79992218]
[1772716569808,4.29207962,2128.6,2127.5,1.79992218]
[1772716571232,4.29207962,2128.6,2127.7,1.78939193]
[1772716571432,3.11659534,2128.5,2127.7,1.78939193]
[1772716572136,0.001,2128.6,2127.7,1.78939193]
[1772716572708,3.11659534,2129.4,2128.1,1.77989916]
[1772716572919,0.001,2129.5,2128.9,1.77989916]
[1772716573208,3.11659534,2130.3,2129.3,1.77989916]
[1772716573409,3.11659534,2130.2,2129.2,1.17414991]
[1772716573713,1e-08,2129.3,2129.2,1.17414991]
[1772716573912,1e-08,2129.3,2129.0,1.30666287]
[1772716574112,1.17354525,2130.3,2129.1,3.00606226]
[1772716574113,3.11659534,2130.2,2129.1,3.00606226]
[1772716575208,3.11659534,2130.2,2129.4,3.00606226]
[1772716575508,1.17452952,2130.4,2129.4,3.00606226]
[1772716575732,3.11659534,2130.3,2129.4,3.00606226]
[1772716577337,3.11659534,2130.3,2129.5,1.1739845]
[1772716577641,3.11659534,2130.3,2129.5,4.18004676]
[1772716578048,0.001,2130.4,2129.6,3.00606226]
[1772716578637,3.11659534,2130.3,2129.5,1.1739845]
[1772716579264,3.11659534,2130.3,2127.9,1.40979518]
[1772716579265,3.11659534,2130.3,2128.7,0.065536]
[1772716579468,2.99438046,2130.1,2129.0,1.30665308]
[1772716579636,2.99438046,2129.9,2129.0,1.30665308]
[1772716580473,2.99438046,2129.8,2129.0,0.13242359]
[1772716580964,2.99438046,2129.8,2128.5,1.17453605]
[1772716581331,2.99438046,2129.8,2128.4,4.70190899]
[1772716581332,2.99438046,2129.6,2128.4,4.70190899]
[1772716582164,1.718,2129.5,2128.4,4.70190899]
[1772716582386,2.99438046,2129.4,2128.4,4.70190899]
[1772716583164,2.99438046,2129.4,2128.4,1.17828562]
[1772716583758,2.99438046,2129.2,2128.4,0.00369438]
[1772716585250,2.99438046,2129.2,2128.4,3.22057592]
[1772716585887,2.99438046,2129.1,2128.5,1.17453605]
[1772716586991,2.99438046,2129.1,2128.4,1.17824294]
[1772716587885,2.99438046,2128.9,2128.4,0.00369438]
[1772716589785,1.17437053,2128.8,2128.4,0.00369438]
[1772716590088,4.43528463,2128.8,2128.4,0.00369438]
[1772716590259,4.43528463,2128.8,2128.2,1.17470162]
[1772716590466,4.43528463,2128.8,2127.8,3.17099123]
[1772716590467,3.2609141,2128.7,2127.9,1.17486724]
[1772716590662,3.2609141,2128.7,2128.4,0.0011]
[1772716591061,3.2609141,2128.7,2128.1,0.0011]
[1772716592184,1.17448087,2128.6,2128.1,0.0011]
[1772716592360,3.2609141,2128.6,2128.1,0.0011]
[1772716593764,4.9859141,2128.8,2128.1,0.0011]
[1772716594087,3.2609141,2129.1,2128.1,3.17209123]
[1772716594293,3.2609141,2129.1,2128.3,3.17099123]
[1772716594661,1.726,2129.2,2128.3,3.17099123]
[1772716596876,3.2609141,2129.3,2128.4,4.34558247]
[1772716597672,3.2609141,2129.3,2128.5,3.17099123]
[1772716598193,3.2609141,2129.3,2128.4,1.17459124]
[1772716598679,3.2609141,2129.3,2128.4,4.34558247]
[1772716598883,4.43502837,2129.3,2128.5,3.17099123]
[1772716599993,3.2609141,2129.2,2128.5,3.17099123]
[1772716601102,4.43510725,2129.2,2128.6,1.17448087]
[1772716601518,3.2609141,2129.1,2128.2,4.69865606]
[1772716601720,3.2609141,2129.1,2128.3,3.17099123]
[1772716602010,3.2609141,2129.3,2128.3,3.17099123]
[1772716602580,4.43501334,2129.3,2128.3,3.17209123]
[1772716602779,3.2609141,2129.2,2128.3,3.17209123]
[1772716602982,3.2619141,2129.1,2128.3,3.17209123]
[1772716603316,3.2619141,2129.1,2128.4,4.34558247]
[1772716603697,3.2619141,2129.1,2128.4,1.17459124]
[1772716603903,4.43476127,2129.8,2128.5,3.17099123]
[1772716604197,4.43476127,2129.8,2128.4,1.17459124]
[1772716604198,3.2609141,2129.7,2128.4,1.17459124]
[1772716604780,2.79603808,2129.6,2128.4,1.17459124]
[1772716604976,3.2609141,2129.5,2128.4,1.17459124]
[1772716605412,3.2609141,2129.3,2128.4,3.17099123]
[1772716605624,4.9899141,2129.3,2128.4,3.17099123]
[1772716605984,3.2609141,2129.3,2128.4,3.17099123]
[1772716606485,3.2609141,2129.3,2128.3,4.69946496]
[1772716607103,3.2609141,2129.3,2128.3,1.17574643]
[1772716607495,3.2609141,2129.1,2128.3,0.0011]
[1772716608307,3.2609141,2128.9,2128.1,1.17585682]
[1772716608615,2.80111722,2129.0,2128.1,1.17585682]
[1772716608616,3.2609141,2128.7,2128.1,0.0011]
[1772716609108,2.80304363,2128.6,2128.1,0.0011]
[1772716609283,2.99015964,2128.5,2128.1,0.0011]
[1772716609478,1.17459124,2128.4,2128.1,0.0011]
[1772716609703,4.16475088,2128.4,2128.1,0.0011]
[1772716609899,2.99015964,2128.3,2128.1,0.0011]
[1772716611295,2.99015964,2128.3,2127.8,0.0011]
[1772716611296,2.99015964,2128.1,2127.8,0.0011]
[1772716612205,4.1649166,2128.1,2127.8,0.0011]
[1772716613103,2.99015964,2128.0,2127.8,0.0011]
[1772716613287,2.99015964,2128.0,2127.3,0.0011]
[1772716613490,4.16502688,2127.9,2127.3,0.0011]
[1772716613729,2.99015964,2127.8,2127.3,0.0011]
[1772716614019,1.731,2127.7,2127.3,0.0011]
[1772716615121,2.99015964,2127.6,2127.3,0.0011]
[1772716615818,2.99015964,2127.9,2127.3,0.0011]
[1772716616122,2.99015964,2127.8,2127.3,0.0011]
[1772716617190,2.99015964,2128.1,2127.3,0.0011]
[1772716617418,2.23927863,2128.6,2127.3,0.0011]
[1772716617419,1.17456135,2128.4,2127.3,3.24740172]
[1772716617791,2.99015964,2128.2,2127.4,1.17514336]
[1772716617996,2.99015964,2128.2,2127.3,1.17625775]
[1772716618192,1.733,2128.1,2127.5,0.0011]
[1772716618420,2.99015964,2128.2,2127.5,0.0011]
[1772716618737,4.72315964,2128.2,2127.5,0.0011]
[1772716619095,1.733,2128.2,2127.5,0.0011]
[1772716619426,2.99015964,2128.1,2127.5,0.0011]
[1772716619926,1.17456135,2128.0,2127.5,0.0011]
[1772716620630,1.17456135,2128.0,2127.5,3.24740172]
[1772716621697,2.34938271,2128.0,2127.5,0.0011]
[1772716621896,2.99015964,2127.9,2127.5,0.0011]
[1772716622096,2.34938271,2128.0,2127.5,0.0011]
[1772716623033,2.99015964,2127.9,2127.5,0.0011]
[1772716623829,2.99015964,2127.9,2127.3,0.0011]
[1772716624524,2.99015964,2127.8,2127.3,0.0011]
[1772716625628,2.99015964,2128.5,2127.3,3.24740172]
[1772716625826,1.737,2128.1,2127.3,3.24740172]
[1772716626015,4.72715964,2128.1,2127.3,3.24740172]
[1772716626214,2.99015964,2128.0,2127.3,3.24740172]
[1772716626416,1.17456135,2127.7,2127.4,1.17514336]
[1772716626612,1.17456135,2127.7,2127.5,3.24630172]
[1772716626930,1.08154961,2127.7,2127.5,3.24630172]
[1772716627112,1.737,2128.2,2127.5,3.24630172]
[1772716627523,2.91170784,2128.2,2127.5,3.24630172]
[1772716628615,2.91170784,2128.2,2127.6,1.1750329]
[1772716629016,1.737,2128.2,2127.6,1.1750329]
[1772716630001,1.737,2128.4,2127.7,3.24630172]
[1772716630234,0.001,2127.8,2127.7,3.24630172]
[1772716630414,1.17431537,2128.9,2127.7,3.24630172]
[1772716630415,1.17430472,2128.7,2127.7,3.24630172]
[1772716630827,2.99015964,2128.6,2127.9,3.24630172]
[1772716631033,2.99015964,2128.6,2127.8,1.17492245]
[1772716631231,2.99015964,2128.6,2127.8,4.42122417]
[1772716631833,2.3487323,2128.7,2127.9,3.24630172]
[1772716632500,1.17430472,2128.7,2127.9,3.24630172]
[1772716632706,1.17430472,2128.7,2128.0,1.17481203]
[1772716632907,1.17430472,2128.7,2128.1,3.24630172]
[1772716634226,2.34873415,2128.7,2128.1,3.24630172]
[1772716634435,5.33889379,2128.7,2128.0,1.17481203]
[1772716634810,1.17430472,2128.7,2128.2,4.42100334]
[1772716635212,1.17430472,2128.7,2128.3,3.24630172]
[1772716635514,0.001,2129.1,2128.3,3.24630172]
[1772716636443,1.1752065,2129.1,2128.3,3.24630172]
[1772716636623,0.001,2129.1,2128.3,3.24630172]
[1772716636825,0.001,2129.1,2128.5,3.24630172]
[1772716638841,0.001,2129.1,2128.6,1.17448087]
[1772716639335,0.001,2129.1,2128.6,4.33893914]
[1772716639537,3.09038036,2129.1,2128.3,4.3391047]
[1772716639738,3.09038036,2129.1,2128.1,7.86343742]
[1772716640737,2.42684161,2129.0,2127.3,4.70188214]
[1772716640926,3.08938036,2128.7,2127.4,4.70041207]
[1772716641133,1.17437053,2128.8,2127.4,4.70041207]
[1772716641134,3.08938036,2128.5,2127.4,4.70041207]
[1772716641535,3.08938036,2128.5,2127.5,3.16555827]
[1772716642028,3.08938036,2128.5,2127.5,0.0011]
[1772716642539,3.08938036,2128.5,2128.0,0.0011]
[1772716642938,3.08938036,2128.3,2128.0,0.0011]
[1772716643114,3.08938036,2128.3,2127.8,0.0011]
[1772716644938,1.17470162,2128.2,2127.8,0.0011]
[1772716645154,3.08938036,2128.1,2127.8,0.0011]
[1772716645641,1.17470162,2128.2,2127.8,0.0011]
[1772716645642,2.90670162,2128.2,2127.8,0.0011]
[1772716645831,1.11470162,2128.2,2127.8,0.0011]
[1772716646446,5.99505893,2128.3,2127.8,0.0011]
[1772716647247,0.001,2128.9,2127.9,3.16445827]
[1772716648012,1.17531775,2128.9,2127.9,3.16445827]
[1772716648245,0.001,2128.9,2127.9,3.16445827]
[1772716649242,9.39644557,2128.8,2128.1,3.1194609]
[1772716650828,0.001,2128.9,2128.1,3.1194609]
[1772716651025,9.39744557,2128.9,2128.1,3.1194609]
[1772716651658,9.39744557,2128.9,2128.2,1.17470162]
[1772716651857,4.69848801,2128.8,2128.2,1.17470162]
[1772716652230,4.69848801,2128.8,2128.2,4.29416252]
[1772716654262,9.39644557,2128.7,2128.3,3.1194609]
[1772716654562,4.69795756,2128.7,2128.3,3.1194609]
[1772716655440,4.69795756,2128.7,2128.3,3.1205609]
[1772716655852,4.69795756,2128.6,2128.4,1.17459124]
[1772716656057,4.69795756,2128.8,2128.4,1.0805795]
[1772716656268,9.39644557,2128.8,2128.3,1.17572643]
[1772716656433,9.39644557,2128.7,2128.3,1.17572643]
[1772716656761,1.29872033,2128.7,2128.4,1.93779943]
[1772716657864,5.99720834,2128.7,2128.4,4.69817268]
[1772716658170,0.001,2128.9,2128.3,0.0011]
[1772716658171,4.69848801,2128.6,2128.3,0.0011]
[1772716658337,3.30555449,2128.7,2128.3,0.0011]
[1772716658537,9.30276283,2128.7,2128.3,1.17574599]
[1772716659368,9.30276283,2128.7,2128.3,0.0011]
[1772716659657,5.99720834,2128.6,2128.3,0.0011]
[1772716659862,5.99720834,2128.6,2128.3,1.17574126]
[1772716660034,5.93720834,2128.6,2128.3,0.0011]
[1772716660429,5.93720834,2128.6,2128.3,2.03432596]
[1772716662159,5.93720834,2128.6,2128.4,1.17459124]
[1772716662765,5.93720834,2128.6,2128.3,3.20893035]
[1772716664147,3.91013632,2128.6,2128.3,1.18072063]
[1772716664763,0.001,2128.9,2128.4,0.06424102]
[1772716665079,0.001,2128.9,2128.3,1.17570439]
[1772716665373,3.44663799,2128.9,2128.3,1.17570439]
[1772716665668,3.44563799,2128.8,2128.3,1.17570439]
[1772716667673,0.001,2128.7,2128.3,1.17570439]
[1772716667858,0.001,2128.7,2128.4,0.17715581]
[1772716668067,0.001,2128.7,2128.3,1.17570439]
[1772716668444,0.001,2128.7,2128.3,0.0011]
[1772716670664,0.001,2128.9,2128.3,0.0011]
[1772716670870,0.001,2128.9,2128.4,0.17834567]
[1772716672545,3.44613799,2128.8,2128.3,0.0011]
[1772716675351,3.44613799,2128.7,2128.3,0.0011]
[1772716677483,3.44613799,2128.7,2128.0,2.63487116]
[1772716677484,3.44613799,2128.6,2128.0,2.63487116]
[1772716677652,3.44613799,2128.6,2128.0,2.8136291]
[1772716678174,3.44613799,2128.6,2128.1,0.17875794]
[1772716678548,3.44613799,2128.6,2128.0,1.17589574]
[1772716679065,3.44613799,2128.6,2128.0,1.35354137]
[1772716679454,1.17453605,2128.5,2128.2,0.0011]
[1772716679861,4.62166416,2128.6,2128.2,0.0011]
[1772716680163,3.44613799,2128.5,2128.0,0.0011]
[1772716680361,3.44613799,2128.5,2128.0,1.17588724]
[1772716680877,3.44658799,2128.6,2128.0,1.17588724]
[1772716681075,3.44558799,2128.5,2128.0,0.0011]
[1772716681483,3.44558799,2128.5,2128.0,1.17590328]
[1772716681776,1.17459124,2128.4,2128.0,0.17328318]
[1772716681953,1.17457463,2128.5,2128.0,0.17328318]
[1772716682354,0.001,2128.6,2128.0,0.17328318]
[1772716683676,0.001,2128.6,2128.1,1.34454597]
[1772716684756,0.001,2128.6,2128.2,0.16854297]
[1772716686081,0.001,2128.6,2128.3,1.17464643]
[1772716688765,3.44658799,2128.6,2128.3,1.17464643]
[1772716689563,3.44658799,2128.6,2128.1,1.17475682]
[1772716689983,3.44658799,2128.6,2128.0,1.17590756]
[1772716690389,4.62012404,2128.5,2128.0,0.0011]
[1772716690587,3.44558799,2128.5,2128.0,0.0011]
[1772716690792,0.001,2128.6,2128.0,0.16471184]
[1772716691063,3.44658799,2128.6,2128.0,0.16471184]
[1772716691263,4.62107445,2128.6,2128.0,0.16471184]
[1772716691686,4.62107445,2128.6,2128.2,0.0011]
[1772716692085,0.001,2128.4,2128.2,0.0011]
[1772716697381,3.44503799,2128.3,2127.8,0.0011]
[1772716697586,3.44503799,2128.3,2126.8,0.0011]
[1772716697587,3.44503799,2128.1,2126.9,1.461]
[1772716697768,3.44503799,2127.8,2126.8,1.1765372]
[1772716697974,2.6633832,2127.9,2127.0,0.0033]
[1772716697975,3.44503799,2127.6,2127.0,0.0033]
[1772716698277,3.44503799,2127.5,2127.0,0.0011]
[1772716699402,3.44503799,2127.3,2127.0,0.0011]
[1772716700090,3.44503799,2127.3,2126.8,0.0011]
[1772716701600,3.44503799,2127.1,2126.8,0.0011]
[1772716702608,3.44503799,2126.9,2126.8,0.0011]
[1772716703204,3.44503799,2126.9,2126.7,0.0011]
[1772716703399,3.44503799,2126.9,2126.5,0.0011]
[1772716703599,3.44503799,2126.9,2126.6,0.0022]
[1772716705107,1.17525385,2127.2,2126.7,0.0011]
[1772716705108,1.726,2127.1,2126.7,0.0011]
[1772716705287,3.44503799,2127.1,2126.8,0.0011]
[1772716705488,3.44503799,2127.1,2126.8,0.0033]
[1772716705688,3.44503799,2127.1,2126.5,0.0011]
[1772716708204,3.44338799,2126.9,2126.5,0.0011]
[1772716710706,3.44338799,2127.7,2126.5,0.0011]
[1772716710900,3.44338799,2127.5,2126.5,0.0011]
[1772716713221,1.17514336,2127.4,2126.5,0.0011]
[1772716713418,3.44338799,2127.2,2126.5,0.0011]
[1772716715519,3.44338799,2127.0,2126.5,0.0011]
[1772716716301,3.44338799,2127.0,2126.0,0.0011]
[1772716716302,3.44283799,2126.5,2125.2,0.10361052]
[1772716716615,4.34824166,2126.9,2125.2,0.10361052]
[1772716716616,3.44283799,2126.2,2125.2,0.10361052]
[1772716716815,3.44283799,2126.0,2125.2,0.10361052]
[1772716717004,3.44283799,2126.0,2125.2,1.27996544]
[1772716717327,3.44283799,2125.8,2125.2,0.10361052]
[1772716717531,3.44283799,2125.8,2124.9,1.17649196]
[1772716717704,3.44283799,2125.6,2124.6,0.065536]
[1772716718329,1.17608317,2125.7,2124.5,4.82631723]
[1772716718330,3.44283799,2125.4,2124.5,4.82631723]
[1772716718526,3.44283799,2125.4,2124.5,4.70688502]
[1772716719027,3.44283799,2125.4,2124.2,0.18299851]
[1772716719028,3.44283799,2125.4,2124.3,1.17685825]
[1772716719937,3.44283799,2125.2,2124.0,4.70808596]
[1772716720143,5.16883799,2125.1,2124.2,0.1154857]
[1772716720300,3.44283799,2125.0,2124.2,0.1154857]
[1772716722113,3.44283799,2125.0,2124.3,1.17685825]
[1772716723715,3.44283799,2124.9,2124.3,1.17685825]
[1772716723919,3.44283799,2125.4,2124.4,0.10190316]
[1772716724123,3.44283799,2125.3,2124.5,1.27865062]
[1772716724910,4.61899896,2125.6,2124.6,0.09697912]
[1772716725115,2.28525308,2126.6,2124.8,3.29951074]
[1772716725116,3.28104568,2125.9,2124.8,3.29951074]
[1772716725810,4.45702445,2125.9,2124.8,3.29951074]
[1772716726003,1.725,2126.2,2124.9,1.17652595]
[1772716726004,1.17608317,2125.7,2124.9,1.17652595]
[1772716726207,4.45712885,2125.7,2124.9,1.17652595]
[1772716728436,3.28104568,2125.6,2124.9,1.17652595]
[1772716729535,3.28104568,2125.6,2125.1,0.0011]
[1772716729738,3.23428287,2125.4,2124.2,1.17691366]
[1772716729932,3.23428287,2125.4,2124.9,0.0011]
[1772716730140,3.23428287,2125.2,2124.9,0.0011]
[1772716730437,3.23428287,2125.0,2124.6,0.0011]
[1772716730735,3.23428287,2125.0,2124.0,1.17702448]
[1772716730911,3.23428287,2125.0,2123.9,4.43826443]
[1772716731116,3.23428287,2125.0,2123.7,4.70863272]
[1772716731806,3.23428287,2124.8,2123.7,3.26122768]
[1772716732012,3.23428287,2124.8,2123.7,1.17719075]
[1772716732239,3.23428287,2124.6,2123.5,7.9704306]
[1772716732815,3.23428287,2124.6,2123.2,7.97109679]
[1772716733023,3.23428287,2124.3,2123.0,4.71030465]
[1772716733213,3.23428287,2124.1,2123.0,4.71030465]
[1772716734134,3.23428287,2124.4,2123.1,3.26122768]
[1772716734342,3.23428287,2124.2,2122.9,3.32676368]
[1772716734521,3.23428287,2124.2,2122.9,3.26122768]
[1772716735316,3.23428287,2124.1,2122.9,3.26122768]
[1772716736315,3.23428287,2124.1,2123.1,3.26122768]
[1772716737442,4.41125815,2124.1,2123.1,3.26122768]
[1772716737748,3.23428287,2124.3,2123.1,3.26122768]
[1772716737950,4.41117208,2124.3,2123.1,3.26122768]
[1772716738251,0.51710269,2124.4,2123.1,3.26122768]
[1772716738422,0.51710269,2124.4,2123.5,3.26122768]
[1772716739354,3.75138556,2124.4,2123.5,3.26122768]
[1772716739560,0.51710269,2124.4,2123.5,3.26122768]
[1772716740436,0.51710269,2124.4,2123.6,1.17724618]
[1772716740768,1.69391174,2124.4,2123.6,1.17724618]
[1772716740976,0.51710269,2124.4,2123.7,3.26122768]
[1772716741113,4.70509082,2125.5,2123.7,3.26122768]
[1772716741114,3.23428287,2125.0,2123.7,3.26122768]
[1772716741318,3.23428287,2125.0,2123.6,1.17724618]
[1772716741319,3.23428287,2125.0,2123.9,3.26122768]
[1772716741618,3.23428287,2125.3,2123.9,3.26122768]
[1772716742439,3.23428287,2125.3,2124.1,3.26122768]
[1772716742620,0.3164323,2125.4,2124.3,3.26122768]
[1772716743363,0.3164323,2125.4,2124.5,3.26122768]
[1772716743813,0.3164323,2125.4,2124.9,3.26122768]
[1772716744012,3.23428287,2125.9,2124.9,3.26122768]
[1772716744526,3.23428287,2125.9,2125.0,4.43769826]
[1772716745524,3.23428287,2125.9,2125.1,3.26122768]
[1772716745848,3.23428287,2126.2,2125.1,3.26122768]
[1772716746525,3.23428287,2126.2,2125.2,1.17635987]
[1772716746720,3.23428287,2126.2,2125.3,3.26122768]
[1772716746922,7.35410162,2126.5,2125.3,3.26122768]
[1772716746923,5.88577912,2126.5,2125.3,3.26122768]
[1772716747243,5.88577912,2126.5,2125.2,1.17635987]
[1772716747244,3.23428287,2126.4,2125.2,1.17635987]
[1772716747819,3.23428287,2126.3,2125.3,3.26122768]
[1772716748021,3.23428287,2126.3,2125.2,1.17635987]
[1772716748220,3.23428287,2126.3,2125.3,3.26122768]
[1772716748621,3.23428287,2126.3,2125.4,4.43747685]
[1772716749942,4.70248863,2126.6,2125.5,3.26122768]
[1772716749943,3.23428287,2126.6,2125.5,3.26122768]
[1772716750732,3.23428287,2126.6,2125.6,4.43736618]
[1772716750933,3.23428287,2126.5,2125.6,4.43736618]
[1772716751142,3.23428287,2126.5,2125.6,1.1761385]
[1772716751919,3.23428287,2126.5,2125.6,4.43736618]
[1772716753142,3.23428287,2126.3,2125.6,1.1761385]
[1772716753824,3.23428287,2126.3,2125.6,4.43736618]
[1772716754148,4.40989329,2126.6,2125.6,4.43736618]
[1772716754446,0.001,2126.3,2125.6,4.43736618]
[1772716755447,3.23428287,2126.8,2125.5,0.065536]
[1772716755645,3.23428287,2126.8,2125.8,3.26122768]
[1772716757117,1.49133558,2127.1,2125.8,3.26122768]
[1772716757118,3.55026684,2127.1,2125.8,3.26122768]
[1772716757322,4.40965425,2127.0,2126.0,3.26122768]
[1772716757524,3.23428287,2127.0,2126.0,3.26122768]
[1772716757719,1.49132262,2127.1,2125.9,1.17597252]
[1772716757720,0.31598397,2127.1,2126.2,3.26122768]
[1772716758218,4.72557692,2127.1,2126.2,3.26122768]
[1772716758418,3.23428287,2127.0,2126.2,3.26122768]
[1772716758632,3.23428287,2127.0,2125.9,4.4372002]
[1772716759361,3.45278992,2126.8,2125.7,1.17608317]
[1772716759715,3.45278992,2126.7,2125.7,1.17608317]
[1772716760545,3.45278992,2126.7,2125.8,3.35979554]
[1772716761119,3.45278992,2126.7,2125.7,1.17608317]
[1772716761531,3.45278992,2126.5,2125.6,4.70389011]
[1772716762051,3.45278992,2126.5,2125.6,1.1761385]
[1772716762940,3.45278992,2126.7,2125.7,3.35979554]
[1772716763125,4.6283219,2126.7,2125.7,3.35979554]
[1772716763533,4.62842696,2126.6,2125.8,1.17602784]
[1772716763848,3.45278992,2126.5,2125.8,1.17602784]
[1772716765478,5.15978992,2126.8,2125.8,4.53582338]
[1772716765646,5.15978992,2126.8,2125.9,3.35979554]
[1772716765647,3.45278992,2126.7,2125.9,3.35979554]
[1772716765852,3.35181152,2127.2,2125.9,3.23952292]
[1772716766054,3.35181152,2127.2,2126.4,0.065536]
[1772716766258,3.35181152,2127.2,2126.4,3.40603732]
[1772716766654,3.45278992,2127.5,2126.4,3.80021593]
[1772716767171,0.001,2126.6,2126.4,3.80021593]
[1772716767368,3.45278992,2127.5,2126.5,0.39401384]
[1772716767570,3.45278992,2127.5,2126.6,1.17558544]
[1772716767898,4.62788082,2127.5,2126.6,1.17558544]
[1772716768251,3.40263015,2127.4,2126.6,1.17558544]
[1772716768438,3.40263015,2127.4,2126.5,5.0963556]
[1772716768439,3.40263015,2127.4,2126.5,1.56963782]
[1772716768640,3.40263015,2127.4,2126.5,1.56964684]
[1772716769277,3.40263015,2127.4,2126.5,0.39401384]
[1772716769569,3.40263015,2127.2,2126.5,1.56963789]
[1772716769771,3.40263015,2127.5,2126.5,4.47586465]
[1772716772045,3.40263015,2127.5,2126.5,1.17562405]
[1772716772278,3.40263015,2127.4,2126.5,1.17562405]
[1772716773554,3.40263015,2127.4,2126.2,1.1758066]
[1772716774070,3.40263015,2127.2,2126.2,4.4760472]
[1772716774572,3.40263015,2127.2,2126.2,1.1758066]
[1772716775459,3.40263015,2127.2,2126.1,1.75893252]
[1772716776278,3.40263015,2127.0,2126.1,1.75893252]
[1772716777165,3.40263015,2127.0,2126.1,4.47607825]
[1772716777487,3.40263015,2127.3,2126.2,3.3002406]
[1772716778674,3.40263015,2127.2,2126.3,1.1757513]
[1772716779379,3.40263015,2127.2,2126.3,1.1768513]
[1772716779799,0.001,2127.3,2126.4,3.3002406]
[1772716779947,3.40263015,2128.0,2126.7,3.3002406]
[1772716780772,3.40263015,2128.0,2126.9,3.3002406]
[1772716781549,0.001,2128.2,2126.9,3.3002406]
[1772716782779,0.001,2128.2,2127.1,3.3002406]
[1772716783161,3.40363015,2128.2,2127.1,3.3002406]
[1772716784366,3.40363015,2128.2,2127.0,1.17536436]
[1772716785187,3.40263015,2128.0,2126.9,4.70145745]
[1772716787589,3.40263015,2127.7,2126.6,4.70232384]
[1772716788289,3.40263015,2127.7,2126.4,1.17569601]
[1772716788663,3.40263015,2127.5,2126.4,1.17569601]
[1772716789888,3.47132698,2127.3,2126.3,0.0011]
[1772716791395,3.47132698,2127.3,2127.1,0.0011]
[1772716791595,3.47132698,2127.3,2126.3,0.0011]
[1772716791890,3.47132698,2127.3,2126.9,0.0011]
[1772716793871,4.64652819,2127.3,2126.9,0.0011]
[1772716794669,4.64652819,2127.3,2126.6,0.0011]
[1772716794670,3.47132698,2127.2,2126.6,0.0011]
[1772716796076,3.47132698,2127.5,2126.6,0.0011]
[1772716796274,3.47132698,2127.5,2126.6,0.04812341]
[1772716796695,3.47132698,2127.5,2126.6,0.0011]
[1772716797990,1.17514336,2127.4,2126.6,0.0011]
[1772716798192,3.47132698,2127.3,2126.6,0.0011]
[1772716800186,3.47132698,2127.1,2126.6,0.0011]
[1772716801006,3.47132698,2127.6,2126.6,3.25952872]
[1772716801316,3.47132698,2127.6,2126.7,0.0470212]
[1772716801811,3.47132698,2127.6,2126.7,3.30255155]
[1772716802378,3.47132698,2127.6,2126.8,1.17547489]
[1772716802719,3.47132698,2127.5,2126.8,1.17547489]
[1772716803318,3.47132698,2127.5,2126.7,1.17549188]
[1772716804325,3.47132698,2127.5,2126.6,1.17664083]
[1772716804626,3.47132698,2127.3,2126.9,0.0011]